bitfinex-derivatives/quotes_ETHF0:USTF0_20251213
["timestamp","ask_amount","ask_price","bid_price","bid_amount"]
[1765594162003,1.4473,3086.1,3086.0,1.9465]
[1765594162312,1.4473,3085.6,3085.5,3.21070656]
[1765594162506,1.4473,3085.6,3085.5,3.93450656]
[1765594162701,1.4473,3085.6,3085.5,4.69110656]
[1765594165108,1.4473,3085.6,3085.5,3.93450656]
[1765594165810,1.4473,3085.6,3085.5,0.00290656]
[1765594166708,1.4473,3085.6,3085.5,0.72670656]
[1765594169913,1.4473,3085.6,3085.5,1.48330656]
[1765594171714,1.4473,3085.6,3085.5,0.72670656]
[1765594172205,1.4473,3085.6,3085.5,1.48330656]
[1765594172516,1.4473,3085.6,3085.5,0.72670656]
[1765594173613,1.4473,3085.6,3085.5,1.48330656]
[1765594179017,1.4473,3085.6,3085.5,0.00290656]
[1765594179813,1.4473,3085.6,3085.5,0.72670656]
[1765594180014,1.4473,3085.6,3085.5,0.00290656]
[1765594181121,1.4473,3085.6,3085.5,0.72670656]
[1765594181324,1.4473,3085.6,3085.5,0.00290656]
[1765594184224,1.4473,3085.6,3085.5,0.72670656]
[1765594185022,1.4473,3085.6,3085.5,0.00290656]
[1765594186025,2.14064663,3085.6,3085.5,0.00290656]
[1765594186528,1.40404663,3085.6,3085.5,1.93390656]
[1765594186721,1.4473,3085.6,3085.5,1.93390656]
[1765594187221,1.4473,3085.6,3085.5,0.72670656]
[1765594188726,1.4473,3085.6,3085.5,1.93390656]
[1765594189129,0.7107,3085.6,3085.5,1.93390656]
[1765594189324,1.4473,3085.6,3085.5,1.93390656]
[1765594192229,2.4365116,3085.6,3085.5,1.93390656]
[1765594192429,1.4473,3085.6,3085.5,1.93390656]
[1765594194129,1.4473,3085.6,3085.5,0.72670656]
[1765594194329,2.43624948,3085.6,3085.5,0.72670656]
[1765594194725,2.43624948,3085.6,3085.5,0.00290656]
[1765594207039,1.4958,3085.3,3085.2,0.00486042]
[1765594207235,3.17809611,3085.3,3085.2,0.00486042]
[1765594207639,6.38589611,3085.3,3085.2,0.00486042]
[1765594208036,12.38589611,3085.3,3085.2,0.00872221]
[1765594208245,0.4369,3084.5,3083.6,4.6904]
[1765594208445,2.18914663,3084.1,3084.0,1.937]
[1765594208634,3.2078,3084.3,3084.0,1.937]
[1765594208635,3.9249,3084.3,3084.2,1.4826]
[1765594208837,1.4958,3084.3,3084.2,1.4826]
[1765594209036,3.9249,3084.7,3084.6,1.4826]
[1765594209236,5.69174211,3084.7,3084.6,1.4826]
[1765594209446,5.69410902,3084.7,3084.6,1.48528869]
[1765594209837,4.70596691,3084.7,3084.6,1.48528869]
[1765594211842,4.70596691,3084.7,3084.6,0.00268869]
[1765594212044,5.39931354,3084.7,3084.6,0.72338869]
[1765594212744,5.39931354,3084.7,3084.6,0.00268869]
[1765594213844,5.39985614,3084.7,3084.6,0.00268869]
[1765594215649,4.70596691,3084.7,3084.6,0.00268869]
[1765594217748,5.39985614,3084.7,3084.6,0.00268869]
[1765594219350,5.39983457,3084.7,3084.6,0.00268869]
[1765594219754,4.70596691,3084.7,3084.6,0.00268869]
[1765594221654,5.39983457,3084.7,3084.6,0.00268869]
[1765594221854,4.70596691,3084.7,3084.6,0.00268869]
[1765594222060,5.39983457,3084.7,3084.6,0.00268869]
[1765594224364,4.70596691,3084.7,3084.6,0.00268869]
[1765594224568,5.39983457,3084.7,3084.6,0.00268869]
[1765594226665,9.26583457,3084.7,3084.6,0.00268869]
[1765594227164,10.27084991,3084.7,3084.6,0.00268869]
[1765594231462,9.57698225,3084.7,3084.6,0.00268869]
[1765594231662,10.27084991,3084.7,3084.6,0.00268869]
[1765594239573,10.27084991,3084.7,3084.6,0.00015946]
[1765594241670,10.27084991,3084.7,3084.6,1.51965946]
[1765594241868,10.27084991,3084.7,3084.6,0.77335946]
[1765594242268,10.27084991,3084.7,3084.6,1.51965946]
[1765594242771,4.21518225,3084.7,3084.6,1.51965946]
[1765594244073,4.94468225,3084.7,3084.6,1.51965946]
[1765594244277,4.21518225,3084.7,3084.6,1.51965946]
[1765594246178,3.21016691,3084.7,3084.6,1.51965946]
[1765594251184,0.00236691,3084.7,3084.6,1.51965946]
[1765594253987,0.00236691,3084.7,3084.6,7.51965946]
[1765594254486,5.3939637,3085.2,3085.1,1.5035]
[1765594255485,5.39778984,3085.2,3085.1,1.5035]
[1765594256790,4.70432614,3085.2,3085.1,1.5035]
[1765594256979,5.39778984,3085.2,3085.1,1.5035]
[1765594259991,4.70432614,3085.2,3085.1,1.5035]
[1765594260592,3.21162614,3085.2,3085.1,1.5035]
[1765594260984,3.21162614,3085.2,3085.1,2.1969637]
[1765594261186,3.21162614,3085.2,3085.1,1.5035]
[1765594262594,3.92922614,3085.2,3085.1,1.5035]
[1765594263595,0.72142614,3085.2,3085.1,1.5035]
[1765594264899,0.00382614,3085.2,3085.1,1.5035]
[1765594269696,0.72142614,3085.2,3085.1,1.5035]
[1765594270994,0.00382614,3085.2,3085.1,2.1969637]
[1765594271199,2.89761367,3085.8,3085.7,1.5035]
[1765594271395,2.89761367,3085.8,3085.7,0.7302]
[1765594271596,1.4927,3085.8,3085.7,0.7302]
[1765594272090,1.4927,3085.6,3085.5,1.9396]
[1765594272299,2.1861637,3085.6,3085.5,1.1663]
[1765594272500,2.1861637,3085.6,3085.5,0.7302]
[1765594273100,1.4927,3085.6,3085.5,1.5035]
[1765594273300,2.1861637,3085.6,3085.5,1.5035]
[1765594273501,1.4927,3085.6,3085.5,1.5035]
[1765594273697,1.4927,3085.6,3085.5,1.9396]
[1765594275498,0.7176,3085.6,3085.5,1.9396]
[1765594275994,1.4927,3085.6,3085.5,1.9396]
[1765594276800,1.4927,3085.3,3085.2,4.7113]
[1765594277104,1.4927,3085.3,3085.2,1.5035]
[1765594278308,1.4927,3085.3,3085.2,0.7302]
[1765594278707,1.4927,3085.3,3085.2,1.5035]
[1765594284416,1.446,3085.1,3085.0,1.1655]
[1765594284809,1.446,3085.1,3085.0,1.8947]
[1765594285913,1.446,3085.1,3085.0,1.1655]
[1765594286316,1.446,3085.1,3085.0,0.7294]
[1765594287520,1.446,3084.9,3084.8,3.9372]
[1765594288521,1.446,3084.9,3084.8,4.6664]
[1765594289223,1.446,3084.9,3084.8,3.9372]
[1765594290125,1.446,3084.9,3084.8,3.2078]
[1765594291123,1.446,3084.9,3084.8,3.9372]
[1765594291622,1.446,3084.9,3084.8,3.2078]
[1765594294227,0.7167,3084.9,3084.6,0.00015946]
[1765594294420,1.446,3084.9,3084.8,0.7294]
[1765594294618,1.446,3084.9,3084.8,1.4586]
[1765594297922,0.4232,3085.0,3084.6,0.00015946]
[1765594302230,1.8692,3085.0,3084.9,0.7294]
[1765594302431,1.446,3085.0,3084.9,1.4586]
[1765594302635,1.446,3085.0,3084.9,0.7294]
[1765594302830,1.446,3085.0,3084.9,1.4586]
[1765594308627,1.1399,3085.0,3084.6,0.00015946]
[1765594311135,1.8692,3085.0,3084.9,0.7294]
[1765594313238,1.446,3085.0,3084.9,0.7294]
[1765594314635,1.446,3085.0,3084.6,0.00015946]
[1765594316834,2.1396223,3085.0,3084.6,0.00015946]
[1765594318441,2.1396223,3085.0,3084.9,0.7332]
[1765594318642,3.14252996,3085.0,3084.9,0.7332]
[1765594322943,3.14252996,3085.0,3084.9,1.4883]
[1765594323241,3.14252996,3085.0,3084.9,0.7332]
[1765594323440,2.44890766,3085.0,3084.9,1.4883]
[1765594323646,3.2078,3085.1,3085.0,1.9469]
[1765594323837,5.66513282,3085.1,3085.0,1.9469]
[1765594326236,2.45733282,3085.1,3085.0,1.9469]
[1765594327136,1.73333282,3085.1,3085.0,1.9469]
[1765594327548,2.45733282,3085.1,3085.0,0.7332]
[1765594327750,2.45733282,3085.1,3085.0,1.4883]
[1765594327953,2.45733282,3085.1,3085.0,1.9469]
[1765594330947,2.45733282,3085.1,3085.0,0.7332]
[1765594331143,0.7304,3084.7,3084.6,4.69625946]
[1765594331757,0.6936223,3085.2,3084.6,4.69625946]
[1765594331958,2.45758121,3085.1,3084.6,3.20795946]
[1765594332161,1.4544,3085.1,3084.6,3.20795946]
[1765594332653,5.3558223,3084.9,3084.8,0.7332]
[1765594333956,5.35587561,3084.9,3084.8,0.7332]
[1765594334759,4.62547561,3084.9,3084.6,0.00015946]
[1765594335558,1.41767561,3084.9,3084.6,0.00015946]
[1765594335754,3.90147561,3084.9,3084.6,0.00015946]
[1765594336359,0.69367561,3084.7,3084.6,0.00015946]
[1765594336660,2.14807561,3084.7,3084.6,1.48845946]
[1765594338259,0.7304,3084.7,3084.6,1.48845946]
[1765594338464,5.35587561,3084.9,3084.8,1.4883]
[1765594340163,2.14807561,3084.9,3084.8,1.4883]
[1765594342970,1.42407561,3084.9,3084.8,1.4883]
[1765594343170,2.14907561,3084.9,3084.8,1.4883]
[1765594344072,1.42407561,3084.9,3084.8,1.4883]
[1765594344369,2.18827561,3084.9,3084.8,1.4883]
[1765594346472,1.42407561,3084.9,3084.8,1.4883]
[1765594346971,2.18827561,3084.9,3084.8,1.4883]
[1765594348964,2.18820185,3084.9,3084.8,1.4883]
[1765594350276,5.30690185,3085.2,3085.1,1.4735]
[1765594350577,6.30738721,3085.2,3085.1,1.4735]
[1765594351074,7.07158721,3085.2,3085.1,1.4735]
[1765594354380,3.20558721,3085.2,3085.1,1.4735]
[1765594360991,3.20558721,3085.2,3085.1,0.7149]
[1765594373404,3.20558721,3085.2,3085.1,1.4537]
[1765594378304,0.7323,3084.7,3084.6,4.67965946]
[1765594378704,1.42590185,3084.9,3084.8,1.4717]
[1765594379105,0.7323,3084.9,3084.8,1.4717]
[1765594379707,2.16050185,3085.1,3085.0,1.9296]
[1765594379906,3.16111723,3085.1,3085.0,1.9296]
[1765594380205,1.73291538,3085.1,3085.0,1.9296]
[1765594381605,2.46751538,3085.1,3085.0,1.9296]
[1765594384006,1.4669,3085.1,3085.0,1.9296]
[1765594384406,0.7323,3085.1,3085.0,1.9296]
[1765594393817,1.4669,3085.1,3085.0,1.9296]
[1765594396109,0.7323,3085.1,3085.0,1.9296]
[1765594399424,1.4669,3085.5,3085.4,1.4717]
[1765594399615,2.46553723,3085.5,3085.4,0.7329]
[1765594399923,2.46553723,3085.5,3085.0,0.4579]
[1765594400224,0.7323,3085.1,3085.0,1.9296]
[1765594400425,0.16208,3084.6,3084.3,0.00486042]
[1765594400624,3.2078,3084.4,3084.3,0.00486042]
[1765594400818,4.20645079,3084.4,3084.3,0.00486042]
[1765594401014,4.20645079,3084.4,3084.0,0.4579]
[1765594401015,10.89985474,3084.4,3084.0,0.4579]
[1765594401324,0.69340395,3084.1,3083.5,0.4579]
[1765594401524,0.99865079,3084.2,3084.0,0.00349421]
[1765594401724,3.2078,3084.1,3084.0,0.00349421]
[1765594402326,3.2078,3084.1,3084.0,0.44079421]
[1765594402627,3.90120395,3084.1,3084.0,0.44079421]
[1765594404021,3.90120395,3084.1,3084.0,1.21869421]
[1765594404335,3.2078,3084.1,3084.0,1.97099421]
[1765594413830,0.69390347,3084.3,3084.0,1.97099421]
[1765594414033,0.69390347,3084.3,3084.2,1.5135]
[1765594418138,3.90170347,3084.3,3084.2,1.5135]
[1765594421542,0.69390347,3084.3,3084.2,1.5135]
[1765594421744,3.90170347,3084.3,3084.2,1.5135]
[1765594422438,0.69390347,3084.3,3084.2,1.5135]
[1765594422638,3.90170347,3084.3,3084.2,1.5135]
[1765594432346,4.90806619,3084.3,3084.2,1.5135]
[1765594436050,4.90806619,3084.3,3084.0,1.14369421]
[1765594436251,3.90170347,3084.3,3084.2,0.7029]
[1765594436447,4.91070212,3084.3,3084.2,0.7029]
[1765594436752,4.91070212,3084.3,3084.2,1.4807]
[1765594437152,4.91070212,3084.3,3084.0,1.14369421]
[1765594437353,3.90170347,3084.3,3084.0,1.14369421]
[1765594437749,3.90170347,3084.3,3084.0,1.92149421]
[1765594437949,3.90170347,3084.3,3084.0,0.44079421]
[1765594438152,3.90170347,3084.3,3084.0,1.14369421]
[1765594440254,3.90170347,3084.3,3084.2,1.4807]
[1765594440453,4.91074367,3084.3,3084.2,1.4807]
[1765594440653,4.91074367,3084.3,3084.2,0.7029]
[1765594441249,4.91074367,3084.3,3084.2,1.4807]
[1765594443659,4.2168402,3084.3,3084.2,1.4807]
[1765594443861,3.2078,3084.3,3084.2,1.4807]
[1765594450963,0.00486042,3084.7,3084.6,1.4807]
[1765594476474,2.88199944,3084.9,3084.8,1.419]
[1765594476778,2.88199944,3084.9,3084.8,2.11254034]
[1765594477178,3.90134034,3085.4,3085.3,1.419]
[1765594478279,3.2078,3085.4,3085.3,1.419]
[1765594479582,3.2078,3085.4,3085.3,1.67378259]
[1765594479881,3.2078,3085.4,3085.3,1.419]
[1765594487185,3.2078,3085.4,3085.0,1.1607]
[1765594487385,3.2078,3085.4,3085.0,0.4502]
[1765594487386,0.69327201,3085.1,3085.0,0.4502]
[1765594487892,0.69327201,3085.1,3085.0,1.1607]
[1765594492699,0.69327201,3085.1,3085.0,1.936]
[1765594495300,3.2078,3085.2,3085.0,1.1607]
[1765594495498,3.2078,3085.2,3085.1,1.5377]
[1765594495703,3.90107201,3085.2,3085.1,1.5377]
[1765594500202,3.2078,3085.2,3085.1,1.5377]
[1765594501404,3.2078,3085.2,3085.0,1.2126]
[1765594501605,0.69327201,3085.1,3085.0,1.2126]
[1765594502506,3.90107201,3085.2,3085.0,0.4502]
[1765594502705,4.59434402,3085.2,3085.0,0.4502]
[1765594506595,3.90107201,3085.2,3085.0,0.4502]
[1765594509609,4.59434402,3085.2,3085.0,0.4502]
[1765594510610,0.69359958,3085.1,3085.0,0.4502]
[1765594516513,3.90139958,3085.2,3085.0,0.4502]
[1765594517915,3.90138644,3085.1,3085.0,0.4502]
[1765594519614,3.90138644,3085.1,3085.0,1.2126]
[1765594519817,3.90138644,3085.1,3085.0,1.9879]
[1765594524414,0.69358644,3085.1,3085.0,1.9879]
[1765594527623,0.69358644,3085.1,3085.0,1.2126]
[1765594531727,0.69358644,3085.1,3085.0,1.938]
[1765594532224,1.70259739,3085.1,3085.0,1.938]
[1765594535635,1.70259739,3085.1,3085.0,1.2126]
[1765594537536,1.70259739,3085.1,3085.0,0.4502]
[1765594538937,1.70259739,3085.1,3085.0,1.179]
[1765594540136,1.70259739,3085.1,3085.0,1.9044]
[1765594542835,1.70256258,3085.1,3085.0,1.9044]
[1765594545039,0.69355163,3085.1,3085.0,1.9044]
[1765594546036,0.69355163,3085.1,3085.0,0.4502]
[1765594546237,1.70253153,3085.1,3084.5,1.9066]
[1765594546438,0.69355163,3084.6,3084.5,1.9066]
[1765594550342,0.69355163,3084.6,3084.5,1.1812]
[1765594550745,0.69355163,3084.6,3084.5,1.9066]
[1765594557444,3.90135163,3084.8,3084.7,1.482]
[1765594560751,3.2078,3084.8,3084.7,1.482]
[1765594564055,0.69355163,3085.3,3085.2,1.4976]
[1765594564256,4.90888353,3085.3,3085.2,1.4976]
[1765594566451,4.2153319,3085.3,3085.2,1.4976]
[1765594579869,4.9087507,3085.3,3085.2,1.4976]
[1765594584375,1.7009507,3085.3,3085.2,1.4976]
[1765594584576,4.9087507,3085.3,3085.2,1.4976]
[1765594586682,3.9012188,3085.3,3085.2,1.4976]
[1765594587181,4.90867168,3085.3,3085.2,1.4976]
[1765594587980,3.9012188,3085.3,3085.2,1.4976]
[1765594588177,4.90886019,3085.3,3085.2,1.4976]
[1765594596394,1.70106019,3085.3,3085.2,1.4976]
[1765594596594,4.90886019,3085.3,3085.2,1.4976]
[1765594608405,4.90885619,3085.3,3085.2,1.4976]
[1765594609405,4.21544139,3085.3,3085.2,1.4976]
[1765594615310,3.2078,3085.3,3085.2,1.4976]
[1765594620216,3.2078,3085.7,3085.6,1.4913]
[1765594638634,3.2078,3085.7,3085.6,0.7224]
[1765594639434,3.90103315,3085.7,3085.6,0.7224]
[1765594639934,3.2078,3085.7,3085.6,0.7224]
[1765594640430,3.2078,3085.7,3085.6,1.4913]
[1765594640730,3.2078,3085.7,3085.6,0.7224]
[1765594641536,3.2078,3085.7,3085.6,1.4913]
[1765594642433,3.2078,3085.7,3085.6,1.5553]
[1765594644040,3.2078,3085.7,3085.6,0.7864]
[1765594644436,3.2078,3085.7,3085.6,0.064]
[1765594645637,4.21294101,3085.7,3085.6,0.064]
[1765594645934,4.21294101,3085.7,3085.6,0.05780695]
[1765594648039,1.00514101,3085.7,3085.6,0.05780695]
[1765594648337,4.21294101,3085.7,3085.6,0.05180695]
[1765594654041,4.21294101,3085.7,3085.6,1.52660695]
[1765594654337,3.2078,3085.7,3085.6,1.52660695]
[1765594654936,3.2078,3085.7,3085.6,0.82140695]
[1765594662953,3.90101117,3085.7,3085.6,0.05180695]
[1765594668347,0.69321117,3085.7,3085.6,0.05180695]
[1765594668742,3.90101117,3085.7,3085.6,0.05180695]
[1765594669151,4.90692118,3085.7,3085.6,0.05180695]
[1765594671358,4.90707699,3085.7,3085.6,0.05180695]
[1765594687079,11.06909699,3085.7,3085.6,0.05180695]
[1765594687273,0.85540698,3085.4,3085.0,0.4595]
[1765594687473,3.90116698,3085.1,3085.0,0.4595]
[1765594687668,4.90707699,3085.1,3084.5,1.899]
[1765594687876,0.69336698,3084.7,3084.5,1.899]
[1765594688579,0.69336698,3084.7,3084.6,1.4466]
[1765594688983,0.69336698,3084.7,3084.6,0.7113]
[1765594689777,0.69336698,3084.7,3084.5,1.1637]
[1765594690181,0.69336698,3084.7,3084.5,1.899]
[1765594692883,0.69336698,3084.7,3084.6,0.7353]
[1765594693382,0.69336698,3084.7,3084.6,1.4466]
[1765594697288,3.2078,3084.8,3084.7,1.4466]
[1765594699286,3.2078,3084.8,3084.5,1.899]
[1765594699584,0.69336698,3084.6,3084.5,1.899]
[1765594699790,0.69336698,3084.6,3084.5,1.1637]
[1765594700289,0.69336698,3084.6,3084.5,1.899]
[1765594702090,0.69376948,3084.6,3084.5,1.899]
[1765594702488,0.69376948,3084.6,3084.5,1.1637]
[1765594703494,0.69384197,3084.6,3084.5,1.1637]
[1765594704290,0.69384197,3084.6,3084.5,0.4524]
[1765594711403,0.69384197,3084.6,3084.5,1.2105]
[1765594713994,3.90164197,3084.6,3084.5,1.2105]
[1765594715202,3.90164197,3084.6,3084.5,0.4524]
[1765594715408,5.5942244,3084.6,3084.5,0.4524]
[1765594717012,4.90038243,3084.6,3084.5,1.9874]
[1765594724013,4.20654046,3084.6,3084.5,1.9874]
[1765594724210,3.90164197,3084.6,3084.5,1.9874]
[1765594724411,3.2078,3084.6,3084.5,1.9874]
[1765594725107,0.00486042,3084.9,3084.8,1.535]
[1765594728620,0.69870239,3084.9,3084.8,1.535]
[1765594735224,0.69844454,3084.9,3084.8,1.535]
[1765594743437,0.00486042,3084.9,3084.8,1.535]
[1765594747937,3.21266042,3084.9,3084.8,1.535]
[1765594754545,4.21344124,3084.9,3084.8,1.535]
[1765594755341,4.21344124,3084.9,3084.8,1.4815]
[1765594760837,4.21344124,3084.9,3084.8,0.7581]
[1765594761645,1.00564124,3084.9,3084.8,0.7581]
[1765594761852,4.21344124,3084.9,3084.8,0.7581]
[1765594762044,4.21344124,3084.9,3084.8,1.4815]
[1765594762245,3.21266042,3084.9,3084.8,1.4815]
[1765594762960,4.21673407,3084.9,3084.8,1.4815]
[1765594765956,1.00893407,3084.9,3084.8,1.4815]
[1765594766254,4.21673407,3084.9,3084.8,1.4815]
[1765594768851,4.21673407,3084.9,3084.5,1.8808]
[1765594769049,0.69359542,3084.7,3084.5,1.8808]
[1765594769453,1.00422977,3084.6,3084.5,0.4524]
[1765594771958,0.69359542,3084.7,3084.5,0.4524]
[1765594772161,1.00306594,3084.6,3084.5,0.4524]
[1765594772352,1.00306594,3084.6,3084.3,0.00486042]
[1765594772556,0.69359542,3084.4,3084.3,0.00486042]
[1765594777662,0.69359542,3084.4,3084.3,1.43326042]
[1765594786066,3.2078,3084.5,3084.3,1.43326042]
[1765594786267,3.2078,3084.5,3084.4,1.4284]
[1765594787273,3.21266042,3084.9,3084.8,1.4284]
[1765594793578,3.21266042,3084.9,3084.8,0.7099]
[1765594796671,3.21266042,3084.9,3084.8,1.4676]
[1765594796865,3.21266042,3084.9,3084.8,0.7099]
[1765594797179,3.21266042,3084.9,3084.8,1.4676]
[1765594799185,3.90631122,3084.9,3084.8,1.4676]
[1765594799377,3.90631122,3084.9,3084.5,1.2274]
[1765594799572,0.6936508,3084.6,3084.5,1.2274]
[1765594800378,3.21266042,3084.9,3084.5,1.9851]
[1765594800579,0.6936508,3084.7,3084.6,1.524]
[1765594801671,3.21266042,3084.9,3084.8,1.524]
[1765594802582,3.90631122,3084.9,3084.8,1.524]
[1765594808290,0.69851122,3084.9,3084.8,1.524]
[1765594814493,0.69851122,3084.9,3084.5,1.9851]
[1765594816393,0.69851122,3084.9,3084.5,1.2274]
[1765594816594,0.6936508,3084.6,3084.5,1.2274]
[1765594816988,0.6936508,3084.6,3084.5,0.4611]
[1765594817590,3.9014508,3084.6,3084.5,1.2274]
[1765594817998,3.9014508,3084.6,3084.5,1.9851]
[1765594823995,3.90158269,3084.6,3084.5,1.9851]
[1765594824195,3.90158269,3084.6,3084.5,1.2274]
[1765594825493,3.90158269,3084.6,3084.5,0.4611]
[1765594828495,3.2078,3084.6,3084.5,0.4611]
[1765594828696,3.90158269,3084.6,3084.5,1.1721]
[1765594829598,3.90158269,3084.6,3084.5,0.4611]
[1765594830602,4.90188957,3084.6,3084.5,0.4611]
[1765594831197,3.90158269,3084.6,3084.5,0.4611]
[1765594832101,3.90158269,3084.6,3084.3,0.00486042]
[1765594832308,0.69378269,3084.4,3084.3,0.00486042]
[1765594832509,0.69390263,3084.4,3084.3,0.00486042]
[1765594832902,0.69390263,3084.4,3084.3,1.47816042]
[1765594835607,3.2078,3084.6,3084.5,1.9086]
[1765594835912,3.90170263,3084.6,3084.5,1.9086]
[1765594836511,3.2078,3084.6,3084.5,1.9086]
[1765594836711,3.90170263,3084.6,3084.5,1.9086]
[1765594842814,3.90170263,3084.6,3084.5,0.4353]
[1765594843724,3.90170263,3084.6,3084.5,1.1463]
[1765594844221,3.2078,3084.6,3084.5,2.60250263]
[1765594844926,0.00486042,3084.9,3084.8,1.4733]
[1765594845132,0.00486042,3084.9,3084.8,2.16720263]
[1765594850729,0.00486042,3084.9,3084.8,1.4733]
[1765594859737,0.00486042,3084.9,3084.5,1.1635]
[1765594859939,0.00486042,3084.9,3084.5,1.9365]
[1765594859940,3.90170263,3084.6,3084.5,1.9365]
[1765594860330,3.90170263,3084.6,3084.5,1.1635]
[1765594860539,3.90170263,3084.6,3084.5,0.4353]
[1765594860745,3.90170263,3084.6,3084.5,1.1635]
[1765594861639,3.90170263,3084.6,3084.5,1.9365]
[1765594862544,3.2078,3085.2,3085.1,1.5012]
[1765594864529,3.90170263,3085.2,3085.0,1.1793]
[1765594864735,4.59560526,3085.2,3085.0,0.4511]
[1765594864934,4.59560526,3085.2,3084.5,5.1443]
[1765594865140,0.69390263,3084.7,3084.6,1.5012]
[1765594865642,0.69365757,3084.7,3084.6,1.5012]
[1765594874448,0.69365757,3084.7,3084.5,1.1635]
[1765594874852,0.69365757,3084.7,3084.5,1.9365]
[1765594879548,0.69365757,3084.7,3084.5,1.1635]
[1765594879750,0.69365757,3084.7,3084.5,1.8788]
[1765594880049,0.69365757,3084.7,3084.6,1.4591]
[1765594883158,4.55965757,3084.7,3084.6,1.4591]
[1765594885050,4.55965757,3084.7,3084.6,0.7438]
[1765594885249,4.55965757,3084.7,3084.5,0.4353]
[1765594885656,4.55965757,3084.7,3084.5,1.1647]
[1765594885957,0.69382699,3084.6,3084.5,1.1647]
[1765594887053,0.69382699,3084.6,3084.5,1.8738]
[1765594888956,3.2078,3086.1,3085.7,1.4385]
[1765594889163,4.6871,3086.1,3086.0,0.4595]
[1765594889459,0.7279,3085.2,3085.1,4.6463]
[1765594889858,3.90162699,3085.6,3085.1,4.6463]
[1765594890065,3.93815014,3085.6,3085.5,1.898]
[1765594890260,3.21025014,3085.6,3085.5,1.898]
[1765594890456,3.93815014,3085.6,3085.5,1.898]
[1765594891563,4.68955014,3085.6,3085.5,1.898]
[1765594893364,1.48175014,3085.6,3085.5,1.898]
[1765594893566,1.48175014,3085.6,3085.5,1.1889]
[1765594893864,0.00245014,3085.6,3085.0,5.1058]
[1765594894266,1.48175014,3085.6,3085.5,1.898]
[1765594894760,1.48175014,3085.6,3085.5,1.1889]
[1765594896261,1.48175014,3085.6,3085.5,0.4595]
[1765594896458,0.7279,3085.1,3085.0,5.1058]
[1765594896858,0.69382699,3085.5,3085.0,5.1058]
[1765594897063,2.17312699,3085.5,3085.4,0.7294]
[1765594897963,2.17269216,3085.5,3085.4,0.7294]
[1765594899664,1.4793,3085.1,3085.0,3.2078]
[1765594899854,2.17269216,3085.1,3085.0,3.2078]
[1765594900060,2.17269216,3085.1,3085.0,4.3967]
[1765594900566,2.17269216,3085.1,3085.0,5.1058]
[1765594907273,1.42129216,3085.1,3085.0,5.1058]
[1765594907768,1.42129216,3085.3,3085.2,1.4385]
[1765594907968,2.17269216,3085.3,3085.2,1.4385]
[1765594909771,6.03869216,3085.3,3085.2,1.4385]
[1765594912473,6.03869216,3085.3,3085.2,0.7294]
[1765594912867,9.24649216,3085.3,3085.2,0.7294]
[1765594914373,1.5131,3085.1,3085.0,1.9484]
[1765594917373,0.7631,3085.1,3085.0,1.9484]
[1765594919171,8.53029216,3085.3,3085.2,1.4889]
[1765594919473,10.27622019,3085.3,3085.2,1.4889]
[1765594920576,9.52622019,3085.3,3085.2,1.4889]
[1765594921572,0.99592803,3085.3,3085.2,1.4889]
[1765594921777,0.99592803,3085.4,3085.3,1.4889]
[1765594922676,4.79113,3085.5,3085.4,1.4889]
[1765594922876,5.78727637,3085.5,3085.4,1.4889]
[1765594923468,3.866,3085.5,3085.4,1.4889]
[1765594924870,4.6291,3085.5,3085.4,1.4889]
[1765594927274,5.62580679,3085.5,3085.4,1.4889]
[1765594927680,1.75980679,3085.5,3085.4,1.4889]
[1765594929783,0.7631,3085.5,3085.4,1.4889]
[1765594930082,1.75991712,3085.5,3085.4,1.4889]
[1765594931283,0.76555014,3085.6,3085.5,1.9205]
[1765594931484,1.76227987,3085.6,3085.5,1.9205]
[1765594932476,2.51227987,3085.6,3085.5,1.9205]
[1765594932878,1.76227987,3085.6,3085.5,1.9205]
[1765594933872,0.99917987,3085.6,3085.5,1.9205]
[1765594934078,0.00245014,3085.6,3085.5,1.9205]
[1765594940186,1.54135014,3085.6,3085.5,0.4316]
[1765594940393,1.54135014,3085.6,3085.5,1.1737]
[1765594942693,1.54135014,3085.6,3085.5,1.9074]
[1765594945995,2.23461171,3085.6,3085.5,1.9074]
[1765594947497,0.77535014,3085.6,3085.5,1.9074]
[1765594947698,0.00245014,3085.6,3085.5,1.9074]
[1765594948798,0.00245014,3085.6,3085.5,5.1152]
[1765594952698,0.00245014,3085.6,3085.5,1.9074]
[1765594953000,0.00245014,3085.6,3085.5,5.1152]
[1765594956693,0.73795014,3085.6,3085.5,5.1152]
[1765594957301,0.00245014,3085.6,3085.5,5.1152]
[1765594962400,0.00245014,3085.6,3085.5,5.80819978]
[1765594970816,0.00245014,3085.6,3085.5,2.60039978]
[1765594971109,0.00245014,3085.6,3085.5,5.80819978]
[1765594973010,0.00245014,3085.6,3085.5,2.60039978]
[1765594973212,0.00245014,3085.6,3085.5,5.80819978]
[1765594982013,3.2078,3086.9,3086.8,1.4108]
[1765594982214,2.4855238,3087.9,3086.8,1.4108]
[1765594982215,3.2078,3087.3,3087.2,1.4108]
[1765594982414,3.2078,3087.3,3087.2,2.10379978]
[1765594982915,2.17459978,3087.7,3087.6,1.4108]
[1765594983223,1.48405012,3087.7,3087.6,1.4108]
[1765594983517,0.00245012,3087.7,3087.6,1.4108]
[1765594990426,1.48405012,3087.7,3087.6,0.707]
[1765594990822,1.48405012,3087.7,3087.6,1.4108]
[1765594992535,0.00245012,3087.7,3087.6,1.4108]
[1765594993734,0.00245012,3087.7,3087.6,2.10379978]
[1765594996237,0.00245012,3087.7,3087.6,1.4108]
[1765594996929,0.77195012,3087.7,3087.6,1.4108]
[1765594998533,0.00245012,3087.7,3087.6,1.4108]
[1765594999336,0.77195012,3087.7,3087.6,1.4108]
[1765595000535,0.00245012,3087.7,3087.6,1.4108]
[1765595002237,0.72925012,3087.7,3087.6,1.4108]
[1765595002738,0.00245012,3087.7,3087.6,1.4108]
[1765595005140,1.45425012,3087.7,3087.6,1.4108]
[1765595014345,0.72925012,3087.7,3087.6,1.4108]
[1765595014845,1.45425012,3087.7,3087.6,1.4108]
[1765595017049,0.72925012,3087.7,3087.6,1.4108]
[1765595020439,1.45425012,3087.7,3087.6,0.707]